bitfinex-derivatives/quotes_ETHF0:USTF0_20250524
["timestamp","ask_amount","ask_price","bid_price","bid_amount"]
[1748055885149,0.78509,2547.0,2546.9,0.00589183]
[1748055885329,5.71409,2547.0,2546.9,0.00589183]
[1748055885539,10.71409,2547.0,2546.9,0.00589183]
[1748055885840,11.35129,2547.0,2546.9,0.00589183]
[1748055887835,3.2078,2547.2,2546.9,0.00589183]
[1748055888034,17.668,2547.1,2546.9,0.00589183]
[1748055888233,18.45308,2547.1,2546.9,1.38879183]
[1748055888436,19.12988,2547.1,2547.0,0.78509]
[1748055889144,0.78509,2547.0,2546.9,1.38879183]
[1748055890740,18.8858,2547.2,2546.9,1.38879183]
[1748055890951,3.2078,2547.2,2547.1,0.78506]
[1748055891138,36.5548,2547.2,2547.1,0.78506]
[1748055891339,37.33984,2547.2,2547.0,0.78507]
[1748055891639,37.33984,2547.2,2547.1,1.3427]
[1748055891945,34.13204,2547.2,2547.1,1.989]
[1748055892145,15.678,2547.2,2547.1,2.77406]
[1748055892346,33.347,2547.2,2547.1,2.77406]
[1748055895246,3.2078,2547.6,2547.2,0.78503]
[1748055895446,0.78497,2547.4,2547.2,2.73773]
[1748055895747,18.8848,2547.6,2547.3,1.2814]
[1748055896044,0.78497,2547.4,2547.3,1.2814]
[1748055897246,0.78506,2547.1,2547.0,3.2078]
[1748055897446,15.677,2547.1,2547.0,3.99289]
[1748055898251,15.677,2547.1,2547.0,5.34997154]
[1748055898439,15.677,2547.1,2547.0,6.64257154]
[1748055898842,15.677,2547.1,2547.0,3.43477154]
[1748055900655,33.344,2547.1,2547.0,3.43477154]
[1748055902049,33.99979685,2547.8,2547.2,1.96259]
[1748055902248,33.99979685,2547.8,2547.6,0.78488]
[1748055902548,33.99979685,2547.8,2547.7,2.6238]
[1748055903352,33.99979685,2547.8,2547.7,3.40868]
[1748055903950,34.78464685,2547.8,2547.7,2.6238]
[1748055904955,37.99044685,2547.8,2547.7,1.3164]
[1748055905255,39.16772685,2547.8,2547.2,3.19741471]
[1748055905453,2.7361,2547.7,2547.3,2.15609]
[1748055905650,0.78492,2547.6,2547.4,2.15605]
[1748055905850,0.78492,2547.6,2547.5,1.3711]
[1748055907152,2.19572,2547.6,2547.5,1.3711]
[1748055908452,33.341,2547.6,2547.5,1.3711]
[1748055908658,34.12591,2547.6,2547.5,1.3711]
[1748055910059,36.09041,2547.6,2547.5,1.3711]
[1748055910650,0.785,2547.3,2547.2,3.2078]
[1748055910858,0.78509,2547.0,2546.9,1.08577654]
[1748055911159,37.33389,2547.0,2546.9,1.08577654]
[1748055912056,3.99289,2547.0,2546.9,0.00589183]
[1748055912362,34.12709,2547.0,2546.9,0.00589183]
[1748055912760,34.12709,2547.0,2546.9,1.40699183]
[1748055914157,34.12709,2547.0,2546.9,2.19211183]
[1748055914461,34.12709,2547.0,2546.9,1.40699183]
[1748055917656,35.50079,2547.0,2546.9,0.00589183]
[1748055921057,2.15879,2547.0,2546.9,0.00589183]
[1748055921263,35.50479,2547.0,2546.9,0.00589183]
[1748055924158,2.15879,2547.0,2546.9,0.00589183]
[1748055924363,35.50479,2547.0,2546.9,0.00589183]
[1748055924564,0.78506,2547.2,2546.9,0.00589183]
[1748055924868,0.78506,2547.2,2547.0,0.78509]
[1748055924869,18.45308,2547.1,2547.0,0.78509]
[1748055925070,18.45308,2547.1,2547.0,2.10579]
[1748055925371,18.45308,2547.1,2547.0,2.75109]
[1748055926159,1.3248,2547.3,2547.0,2.75109]
[1748055926365,0.78506,2547.1,2547.0,1.43039]
[1748055926565,34.13105,2547.2,2547.0,1.43039]
[1748055926867,0.658,2547.4,2547.0,0.6453]
[1748055927166,3.86359685,2547.5,2547.4,0.78497]
[1748055927364,18.9718,2547.5,2547.4,0.78497]
[1748055927562,36.6398,2547.5,2547.3,0.78497]
[1748055927762,16.54894,2547.5,2547.4,0.6687]
[1748055927964,34.21694,2547.5,2547.4,0.6687]
[1748055928562,34.21694,2547.5,2547.1,3.99285]
[1748055928563,0.78503,2547.3,2547.1,3.99285]
[1748055929262,17.668,2547.3,2547.2,0.78503]
[1748055930870,15.764,2547.4,2547.3,0.78499]
[1748055931170,33.431,2547.4,2547.3,0.78499]
[1748055932466,15.764,2547.4,2547.3,0.78499]
[1748055932765,0.78493,2547.6,2547.4,0.78496]
[1748055932972,33.431,2547.5,2547.1,3.2078]
[1748055933273,33.431,2547.5,2547.4,0.78497]
[1748055934465,2.0586,2547.7,2547.5,0.78493]
[1748055934672,15.763,2547.6,2547.5,0.78493]
[1748055934973,33.429,2547.6,2547.5,0.78493]
[1748055935366,15.763,2547.6,2547.5,0.78493]
[1748055935668,33.429,2547.6,2547.5,0.78493]
[1748055935869,1.45386,2547.8,2547.6,0.7849]
[1748055936078,0.669,2547.8,2547.7,0.78488]
[1748055936265,34.098,2547.8,2547.7,0.78488]
[1748055936465,34.88285,2547.8,2547.7,0.78488]
[1748055936875,1.45385,2547.8,2547.7,0.78488]
[1748055937073,17.21585,2547.8,2547.7,0.78488]
[1748055937370,34.88085,2547.8,2547.7,0.78488]
[1748055938172,34.096,2547.8,2547.7,0.78488]
[1748055938374,34.88085,2547.8,2547.7,0.78488]
[1748055938771,34.88085,2547.8,2547.4,3.8854]
[1748055939070,34.88085,2547.8,2547.6,0.78488]
[1748055939771,34.88085,2547.8,2547.7,0.78488]
[1748055940080,34.096,2547.8,2547.7,0.78488]
[1748055940979,34.88085,2547.8,2547.7,0.78488]
[1748055941479,0.78488,2547.7,2547.6,2.12849]
[1748055941679,1.3374,2547.7,2547.6,2.12849]
[1748055942578,34.88086,2547.8,2547.7,0.78488]
[1748055942778,34.88086,2547.8,2547.7,2.12848]
[1748055942980,1.45386,2547.8,2547.7,2.12848]
[1748055943192,34.094,2547.8,2547.7,2.12848]
[1748055943490,34.87885,2547.8,2547.7,2.12848]
[1748055943783,36.27265,2547.8,2547.7,2.12848]
[1748055943983,35.4878,2547.8,2547.7,2.12848]
[1748055944183,36.27265,2547.8,2547.7,2.12848]
[1748055944587,36.27265,2547.8,2547.7,1.3436]
[1748055946378,36.27265,2547.8,2547.7,2.12848]
[1748055946683,36.27265,2547.8,2547.7,1.3436]
[1748055946880,3.2078,2548.0,2547.0,3.0346961]
[1748055947078,2.7466,2547.7,2547.4,1.4008]
[1748055947273,3.53148,2547.7,2547.6,0.78491]
[1748055947785,2.7466,2547.7,2547.6,0.78491]
[1748055948081,3.53148,2547.7,2547.6,0.78491]
[1748055948286,34.1243,2547.7,2547.6,0.78491]
[1748055948889,0.78486,2547.8,2547.7,0.78488]
[1748055949079,34.20986,2547.8,2547.7,0.78488]
[1748055950184,0.78489,2547.7,2547.6,0.78489]
[1748055950386,34.20987,2547.8,2547.7,0.78488]
[1748055950985,0.7849,2547.7,2547.6,0.78491]
[1748055952288,33.425,2547.7,2547.6,0.78491]
[1748055953284,15.761,2547.7,2547.6,0.78491]
[1748055953478,33.425,2547.7,2547.6,0.78491]
[1748055954085,3.2078,2548.0,2547.9,0.78482]
[1748055954390,0.65579685,2548.2,2548.1,0.78475]
[1748055955488,0.65579685,2548.2,2548.1,3.99255]
[1748055955689,0.65579685,2548.2,2548.1,5.36195]
[1748055956785,0.65579685,2548.2,2548.1,6.71920362]
[1748055959188,34.40653429,2548.4,2548.1,6.71920362]
[1748055959189,33.425,2548.4,2548.3,0.78469]
[1748055960087,33.423,2548.4,2548.3,0.78469]
[1748055961094,15.761,2548.4,2548.3,0.78469]
[1748055961392,1.9337,2548.8,2548.3,0.78469]
[1748055961393,5.29381683,2549.2,2548.9,0.78451]
[1748055961788,18.31579685,2549.0,2548.9,0.78451]
[1748055961992,18.31579685,2549.0,2548.9,2.17341]
[1748055962186,0.65579685,2549.0,2548.9,2.81581]
[1748055963095,0.65579685,2549.0,2548.9,7.81581]
[1748055963396,0.65579685,2549.0,2548.9,2.81581]
[1748055964095,0.65579685,2549.0,2548.9,9.1673316]
[1748055964508,1.9645628,2550.2,2548.9,53.04745848]
[1748055964693,2.29198993,2550.5,2550.4,0.78405]
[1748055964694,1.4217365,2550.5,2550.4,0.78405]
[1748055964897,1.4217365,2550.5,2550.4,3.2078]
[1748055965287,24.0797365,2550.5,2550.2,0.00589183]
[1748055965495,0.78408,2550.3,2550.2,0.00589183]
[1748055965999,2.13418,2550.3,2550.2,0.00589183]
[1748055966502,35.44818,2550.3,2550.2,0.00589183]
[1748055967095,1.3501,2550.3,2550.2,0.00589183]
[1748055967396,33.311,2550.3,2550.2,1.41649183]
[1748055967604,34.09508,2550.3,2550.2,1.41649183]
[1748055967804,35.45128,2550.3,2550.2,1.41649183]
[1748055968394,35.45128,2550.3,2550.2,0.00589183]
[1748055969296,1.3562,2550.3,2550.2,0.00589183]
[1748055969492,34.6652,2550.3,2550.2,0.00589183]
[1748055969696,34.6622,2550.3,2550.2,1.40839183]
[1748055970299,35.44628,2550.3,2550.2,0.00589183]
[1748055971494,40.44628,2550.3,2550.2,0.00589183]
[1748055971806,0.78425,2549.8,2549.6,3.2078]
[1748055972103,33.306,2549.7,2549.6,5.33969]
[1748055972302,33.306,2549.7,2549.6,4.5554]
[1748055972498,33.306,2549.7,2549.2,3.2078]
[1748055972706,1.2729,2549.6,2549.2,4.56129183]
[1748055972905,1.43245,2549.5,2549.2,5.34569183]
[1748055973097,1.43245,2549.5,2549.3,1.3476]
[1748055973298,2.70535,2549.5,2549.3,1.3476]
[1748055973506,0.78435,2549.4,2549.3,1.3476]
[1748055973706,2.70534,2549.5,2549.3,1.3476]
[1748055973906,1.921,2549.5,2549.2,3.21369183]
[1748055974103,0.78439,2549.3,2549.2,0.00589183]
[1748055974307,16.43639,2549.3,2549.2,0.00589183]
[1748055977710,33.304,2549.4,2549.2,0.00589183]
[1748055978010,0.78439,2549.3,2549.2,1.40759183]
[1748055979108,0.00589183,2549.7,2549.4,0.78435]
[1748055979408,0.00589183,2549.7,2549.5,3.2078]
[1748055979598,0.79017183,2549.7,2549.6,1.4017]
[1748055980705,0.00589183,2549.7,2549.6,2.18599]
[1748055981908,17.65689183,2549.7,2549.6,2.18599]
[1748055982104,0.00589183,2549.7,2549.6,2.18599]
[1748055985708,0.00589183,2549.7,2549.6,3.53631623]
[1748055986111,0.00589183,2549.7,2549.6,6.74411623]
[1748055990707,0.00589183,2549.7,2549.6,5.95982623]
[1748055990913,0.00589183,2549.7,2549.6,6.74411623]
[1748055991109,0.00589183,2549.7,2549.6,3.53631623]
[1748055991510,0.79015183,2549.7,2549.6,1.35032623]
[1748055991712,10.27815183,2549.7,2549.6,1.35032623]
[1748055992914,0.78435,2549.4,2549.3,0.78438]
[1748055993108,34.79535,2549.4,2549.3,2.06368]
[1748055994014,34.79535,2549.4,2549.3,1.2793]
[1748055994409,0.78439,2549.3,2549.2,0.00589183]
[1748055994609,2.11779,2549.3,2549.2,0.00589183]
[1748055995210,2.78499,2549.3,2549.2,0.00589183]
[1748055995410,2.78499,2549.3,2549.2,0.79031183]
[1748055995617,2.78499,2549.3,2549.2,0.00589183]
[1748055996317,7.78499,2549.3,2549.2,0.00589183]
[1748055997922,0.78448,2549.0,2548.9,0.393]
[1748055998122,17.14748,2549.0,2548.9,0.393]
[1748055998520,0.78457,2548.7,2548.6,2.3804261]
[1748055998821,17.65,2548.7,2548.6,3.1650261]
[1748055999216,0.78446,2549.1,2548.6,2.3804261]
[1748055999423,16.365,2549.1,2549.0,0.78447]
[1748055999623,34.015,2549.1,2549.0,0.78447]
[1748055999922,34.015,2549.1,2549.0,1.9846]
[1748055999923,34.79946,2549.1,2549.0,1.9846]
[1748056000316,34.80146,2549.1,2549.0,2.76908]
[1748056001026,34.017,2549.1,2549.0,2.76908]
[1748056001429,0.78444,2549.2,2549.0,2.76908]
[1748056001724,34.017,2549.1,2549.0,2.76908]
[1748056001925,0.78444,2549.2,2549.0,2.76908]
[1748056002126,34.017,2549.1,2549.0,2.76908]
[1748056003119,16.365,2549.1,2549.0,2.76908]
[1748056003325,34.80145,2549.1,2549.0,1.3084]
[1748056005522,0.78448,2549.0,2548.9,3.2078]
[1748056005724,3.43238,2549.0,2548.9,3.2078]
[1748056007029,0.78461,2548.6,2548.5,4.5473]
[1748056007334,17.14961,2548.6,2548.5,4.5473]
[1748056008330,34.80161,2548.6,2548.5,5.33193]
[1748056008731,34.80161,2548.6,2548.5,4.5473]
[1748056010928,0.78449,2549.0,2548.5,8.2078]
[1748056011231,0.78443,2549.2,2548.9,3.99229]
[1748056011427,18.43841,2549.3,2549.0,2.10647]
[1748056011624,2.79967,2549.4,2549.0,1.322]
[1748056011825,16.367,2549.3,2549.1,0.6607]
[1748056012025,16.367,2549.3,2549.2,1.322]
[1748056012323,34.022,2549.3,2549.2,2.10642]
[1748056012726,34.022,2549.3,2549.2,1.322]
[1748056012933,34.022,2549.3,2549.2,2.10642]
[1748056013232,34.022,2549.3,2549.2,1.322]
[1748056013933,34.022,2549.3,2549.1,0.78443]
[1748056014134,1.2933,2549.2,2548.7,1.3289]
[1748056014342,1.48807,2549.1,2548.8,0.78452]
[1748056014534,1.48807,2549.1,2548.9,1.3289]
[1748056014827,1.9969,2549.1,2548.9,1.3289]
[1748056015028,0.7036,2549.1,2548.9,2.11339]
[1748056015232,0.7036,2549.1,2549.0,0.78448]
[1748056015434,0.7036,2549.1,2549.0,2.11338]
[1748056016135,1.48805,2549.1,2549.0,2.11338]
[1748056016322,1.48805,2549.1,2549.0,1.3289]
[1748056016527,0.7036,2549.1,2549.0,2.11338]
[1748056016727,1.3865,2549.3,2549.0,2.11338]
[1748056016930,34.80444,2549.2,2549.0,2.11338]
[1748056017228,0.78445,2549.1,2549.0,2.11338]
[1748056017435,34.02,2549.2,2549.0,2.11338]
[1748056017633,34.80444,2549.2,2549.0,2.11336]
[1748056017836,0.78445,2549.1,2549.0,2.11336]
[1748056018338,34.80443,2549.2,2549.0,2.11336]
[1748056020133,0.78445,2549.1,2549.0,2.11336]
[1748056020535,34.80444,2549.2,2549.0,2.11336]
[1748056020733,0.78445,2549.1,2549.0,2.11336]
[1748056021130,0.78445,2549.1,2549.0,1.3289]
[1748056021337,1.96114,2549.1,2548.5,5.0644461]
[1748056021525,5.2102,2549.0,2548.7,1.3436]
[1748056021729,0.78452,2548.9,2548.8,0.78454]
[1748056022133,0.78451,2548.9,2548.8,0.78454]
[1748056022335,1.4198,2549.0,2548.9,0.78451]
[1748056022533,35.2988,2549.0,2548.9,0.78451]
[1748056022841,0.78451,2548.9,2548.8,0.78452]
[1748056023042,34.66351,2548.9,2548.8,0.78452]
[1748056023236,33.879,2548.9,2548.8,3.99232]
[1748056023437,17.654,2548.9,2548.8,3.99234]
[1748056025943,17.654,2549.0,2548.9,0.78449]
[1748056026440,17.654,2549.0,2548.9,1.42779]
[1748056026635,16.226,2549.1,2549.0,0.78448]
[1748056026831,0.78444,2549.2,2549.0,0.78448]
[1748056027031,17.654,2549.1,2549.0,0.78448]
[1748056027243,0.78451,2548.9,2548.8,4.56353126]
[1748056027540,0.7845,2549.0,2548.8,5.34807126]
[1748056028142,18.9945,2549.1,2548.9,1.35573126]
[1748056028143,17.654,2549.1,2548.9,1.35573126]
[1748056028343,0.78448,2549.0,2548.9,1.35573126]
[1748056028939,2.63373,2549.4,2548.9,1.35573126]
[1748056028940,0.6728,2549.4,2548.9,1.35573126]
[1748056029244,17.654,2549.0,2548.9,2.14023126]
[1748056032039,2.1172,2549.3,2548.9,1.35573126]
[1748056032244,33.878,2549.1,2549.0,0.78448]
[1748056032544,34.66245,2549.1,2549.0,0.78448]
[1748056032744,33.878,2549.1,2548.9,1.35573126]
[1748056032946,0.78448,2549.0,2548.9,1.35573126]
[1748056033147,1.48038,2549.0,2548.9,1.35573126]
[1748056033447,0.78451,2548.9,2548.8,3.99233]
[1748056033841,0.78451,2548.9,2548.8,3.2078]
[1748056034345,2.86189,2549.0,2548.8,3.99231]
[1748056034847,2.86189,2549.0,2548.9,0.78451]
[1748056035746,2.86714097,2549.0,2548.9,0.78451]
[1748056035949,2.86714097,2549.0,2548.8,3.99233]
[1748056036148,0.78451,2548.9,2548.8,3.2078]
[1748056036751,2.13751,2548.9,2548.8,3.2078]
[1748056037149,2.13751,2548.9,2548.8,3.99234]
[1748056037649,2.13751,2548.9,2548.8,3.2078]
[1748056037847,0.78457,2548.7,2548.6,1.0720261]
[1748056038146,0.7846,2548.6,2548.5,1.0720261]
[1748056038548,17.00959,2548.7,2548.6,0.7846]
[1748056038749,0.7846,2548.6,2548.5,1.8566461]
[1748056038950,17.00959,2548.7,2548.6,0.7846]
[1748056039446,0.7846,2548.6,2548.5,1.0720261]
[1748056039643,0.7846,2548.6,2548.5,1.8566561]
[1748056039843,1.462,2548.6,2548.5,1.0720261]
[1748056040044,2.8111,2548.6,2548.5,1.35704135]
[1748056040953,2.8111,2548.6,2548.5,2.14167135]
[1748056041152,1.462,2548.6,2548.5,2.64044135]
[1748056044559,1.462,2548.6,2548.5,3.42507135]
[1748056044753,1.462,2548.6,2548.5,2.64044135]
[1748056046652,2.8343,2548.6,2548.5,1.35704135]
[1748056047351,0.78463,2548.5,2548.4,3.21369183]
[1748056047550,19.71943,2548.5,2548.4,3.21369183]
[1748056047949,24.71943,2548.5,2548.4,0.00589183]
[1748056051351,19.71943,2548.5,2548.4,0.00589183]
[1748056051558,24.71943,2548.5,2548.4,0.00589183]
[1748056051955,0.78476,2548.1,2548.0,3.2078]
[1748056052156,16.83376,2548.1,2548.0,3.2078]
[1748056052352,0.78479,2548.0,2547.9,1.4048]
[1748056052546,0.78485,2547.8,2547.7,4.9850261]
[1748056052751,18.44185,2547.8,2547.7,4.9850261]
[1748056053455,18.44185,2547.8,2547.7,5.7699061]
[1748056053753,18.44185,2547.8,2547.7,4.9850261]
[1748056053953,18.44185,2547.8,2547.7,6.3435261]
[1748056054154,18.44185,2547.8,2547.7,5.2715]
[1748056054556,0.78491,2547.6,2547.5,0.00589183]
[1748056054855,16.83491,2547.6,2547.5,0.00589183]
[1748056055255,18.15471,2547.6,2547.5,0.00589183]
[1748056056961,23.15471,2547.6,2547.5,0.00589183]
[1748056057355,7.10471,2547.6,2547.5,0.00589183]
[1748056057562,0.78503,2547.2,2547.1,1.3585]
[1748056057760,16.83703,2547.2,2547.1,1.3585]
[1748056059157,16.052,2547.2,2547.1,2.14356]
[1748056059367,33.712,2547.2,2547.1,2.14356]
[1748056059664,34.49903,2547.2,2547.1,2.14356]
[1748056059965,34.49903,2547.2,2547.1,1.3585]
[1748056060568,0.78503,2547.2,2547.1,1.3585]
[1748056060767,34.50103,2547.2,2547.1,1.3585]
[1748056061967,0.78506,2547.1,2547.0,3.2078]
[1748056062269,0.78506,2547.1,2547.0,4.482]
[1748056063169,0.78506,2547.1,2547.0,1.2742]
[1748056063464,0.78506,2547.1,2547.0,2.05929]
[1748056063670,0.78506,2547.1,2547.0,1.9528]
[1748056064871,34.50406,2547.1,2547.0,1.9528]
[1748056065170,16.84006,2547.1,2547.0,1.9528]
[1748056065367,34.50406,2547.1,2547.0,1.9528]
[1748056068371,16.055,2547.1,2547.0,1.9528]
[1748056068571,33.719,2547.1,2547.0,2.73789]
[1748056069271,0.78502,2547.3,2547.1,0.78506]
[1748056069471,33.722,2547.2,2547.1,2.07316]
[1748056069871,34.50703,2547.2,2547.1,2.07316]
[1748056070072,34.50703,2547.2,2547.1,1.2881]
[1748056070373,16.84203,2547.2,2547.1,1.2881]
[1748056070574,34.50703,2547.2,2547.1,2.07316]
[1748056071370,34.50703,2547.2,2547.1,1.2881]
[1748056072576,33.722,2547.2,2547.1,2.07316]
[1748056073475,34.50703,2547.2,2547.1,2.07316]
[1748056075280,16.057,2547.2,2547.1,2.07316]
[1748056075478,34.50703,2547.2,2547.1,2.07316]
[1748056075784,8.1368,2547.9,2547.1,1.2881]
[1748056075980,34.3935,2547.8,2547.3,3.2078]
[1748056076183,0.78494,2547.5,2547.4,1.9435]
[1748056076385,0.78494,2547.5,2547.4,2.615]
[1748056077584,0.78494,2547.5,2547.4,1.9435]
[1748056077781,0.78494,2547.5,2547.1,0.78504]
[1748056077782,1.9623,2547.6,2547.1,1.2765]
[1748056077984,0.78502,2547.3,2547.2,0.78502]
[1748056078175,16.84102,2547.3,2547.2,1.45652]
[1748056078379,16.056,2547.3,2547.2,1.45652]
[1748056079584,16.841,2547.3,2547.2,0.6715]
[1748056080082,16.841,2547.3,2547.2,1.948]
[1748056080283,16.841,2547.3,2547.2,2.73303]
[1748056080686,16.841,2547.3,2547.2,1.948]
[1748056082087,16.056,2547.3,2547.2,1.948]
[1748056082487,16.841,2547.3,2547.2,1.948]
[1748056082689,16.841,2547.3,2547.2,1.2765]
[1748056086092,0.78492,2547.6,2547.2,1.2765]
[1748056086292,15.866,2547.4,2547.3,3.99278]
[1748056087290,15.866,2547.8,2547.3,3.2078]
[1748056087485,16.65086,2547.8,2547.4,3.47966]
[1748056087681,0.00589183,2548.0,2547.9,0.78481]
[1748056088087,0.00589183,2548.0,2547.9,5.78481]
[1748056088288,0.00589183,2548.0,2547.9,7.12931]
[1748056090193,0.00589183,2548.0,2547.9,9.55699631]
[1748056090894,0.00589183,2548.0,2547.9,10.85419631]
[1748056091091,40.22255669,2548.7,2547.9,10.06938631]
[1748056091389,15.865,2548.5,2548.4,3.2078]
[1748056091594,15.865,2548.5,2548.4,5.2109]
[1748056091795,40.22255669,2548.7,2548.4,6.66506]
[1748056091994,33.528,2548.6,2548.4,6.66506]
[1748056092292,0.65255669,2548.7,2548.6,0.7846]
[1748056092688,0.65255669,2548.7,2548.6,5.7846]
[1748056093297,0.00589183,2548.8,2548.6,5.7846]
[1748056093298,0.00589183,2548.8,2548.7,0.78457]
[1748056093496,0.00589183,2548.8,2548.7,5.35027]
[1748056094490,0.00589183,2548.8,2548.7,4.5657]
[1748056094698,0.00589183,2548.8,2548.7,5.35027]
[1748056103408,0.79043183,2548.8,2548.7,3.2078]
[1748056103609,0.78463,2548.5,2548.4,1.3215]
[1748056103908,33.512,2548.5,2548.2,1.35252626]
[1748056104109,0.6605,2548.4,2548.2,2.67402626]
[1748056104408,2.0234,2548.4,2548.2,2.67402626]
[1748056105108,0.78469,2548.3,2548.2,0.00589183]
[1748056105301,1.3571,2548.3,2548.2,0.00589183]
[1748056107807,2.14179,2548.3,2548.2,0.00589183]
[1748056108202,1.3571,2548.3,2548.2,0.00589183]
[1748056108506,2.14179,2548.3,2548.2,0.00589183]
[1748056109510,1.3571,2548.3,2548.2,0.00589183]
[1748056109707,2.14179,2548.3,2548.2,0.00589183]
[1748056115625,17.658,2548.3,2548.2,0.00589183]
[1748056115816,2.7555,2548.4,2548.2,0.00589183]
[1748056116111,20.4135,2548.4,2548.2,0.00589183]
[1748056116316,0.78469,2548.3,2548.2,0.00589183]
[1748056116614,1.3925,2548.3,2548.2,0.00589183]
[1748056117213,2.17719,2548.3,2548.2,0.00589183]
[1748056119310,2.17719,2548.3,2548.2,1.32389183]
[1748056119510,1.363,2548.4,2548.2,1.32389183]
[1748056119716,17.658,2548.3,2548.2,1.32389183]
[1748056120211,0.6605,2548.4,2548.2,1.32389183]
[1748056120417,18.3185,2548.4,2548.2,2.76089183]
[1748056120618,0.6605,2548.4,2548.2,2.76089183]
[1748056120917,15.767,2548.5,2548.2,2.76089183]
[1748056120918,15.767,2548.5,2548.3,1.3004]
[1748056121113,15.767,2548.5,2548.4,3.2078]
[1748056121714,15.767,2548.5,2548.4,3.8803]
[1748056121911,15.767,2548.5,2548.4,5.1807]
[1748056122617,15.767,2548.5,2548.4,4.5082]
[1748056122618,16.55163,2548.5,2548.4,4.5082]
[1748056124316,16.55163,2548.5,2548.4,3.2078]
[1748056124521,0.78469,2548.3,2548.2,1.41229183]
[1748056124723,0.78469,2548.3,2548.2,0.00589183]
[1748056125114,2.16059,2548.3,2548.2,0.00589183]
[1748056125515,2.82969,2548.3,2548.2,0.00589183]
[1748056130629,2.045,2548.3,2548.2,0.00589183]
[1748056131122,2.82968,2548.3,2548.2,0.00589183]
[1748056133322,20.48768,2548.3,2548.2,0.00589183]
[1748056133623,15.767,2548.5,2548.2,0.00589183]
[1748056133827,0.78464,2548.4,2548.3,3.2078]
[1748056134018,19.85364,2548.4,2548.3,3.2078]
[1748056134219,19.85364,2548.4,2548.3,4.5448]
[1748056136915,0.78464,2548.4,2548.3,4.5448]
[1748056137119,34.20964,2548.4,2548.3,4.5448]
[1748056138821,35.57234,2548.4,2548.3,4.5448]
[1748056140122,33.425,2548.4,2548.3,4.5448]
[1748056140321,34.20965,2548.4,2548.3,5.2239]
[1748056143027,34.20965,2548.4,2548.3,4.5448]
[1748056147729,34.20965,2548.4,2548.3,3.2078]
[1748056149723,34.20965,2548.4,2548.3,4.5369]
[1748056154843,34.20965,2548.4,2548.3,5.89542803]
[1748056156542,34.20965,2548.4,2548.3,4.5369]
[1748056158145,34.20965,2548.4,2548.3,1.3291]
[1748056159147,0.78468,2548.3,2548.2,0.00589183]
[1748056159442,0.78468,2548.3,2548.2,1.31589183]
[1748056159842,0.78468,2548.3,2548.2,2.67462398]
[1748056160345,2.82378,2548.3,2548.2,1.36462398]
[1748056162345,7.82378,2548.3,2548.2,0.37938264]
[1748056162539,11.9681,2548.3,2547.9,1.0720261]
[1748056162746,3.99256,2548.0,2547.9,1.0720261]
[1748056162946,19.65056,2548.0,2547.9,1.0720261]
[1748056163547,0.78482,2547.8,2547.7,1.32309183]
[1748056163741,18.44382,2547.8,2547.7,1.32309183]
[1748056164143,19.12372,2547.8,2547.7,1.32309183]
[1748056165737,19.76672,2547.8,2547.7,1.32309183]
[1748056166543,19.76672,2547.8,2547.7,0.00589183]
[1748056167554,2.10772,2547.8,2547.7,0.00589183]
[1748056167744,19.76872,2547.8,2547.7,0.00589183]
[1748056170657,29.69772,2547.8,2547.7,1.83e-06]
[1748056173856,12.03672,2547.8,2547.7,1.83e-06]
[1748056174153,24.70072,2547.8,2547.7,1.83e-06]
[1748056175668,6.35682,2547.8,2547.7,1.83e-06]
[1748056175857,24.02082,2547.8,2547.7,1.83e-06]
[1748056176052,24.02082,2547.8,2547.7,1.36730183]
[1748056177955,0.78482,2547.8,2547.7,1.36730183]
[1748056178350,34.03082,2547.8,2547.7,1.36730183]
[1748056181355,16.36682,2547.8,2547.7,1.36730183]
[1748056181556,34.03082,2547.8,2547.7,1.36730183]
[1748056181857,15.582,2547.8,2547.7,2.15208183]
[1748056182064,17.664,2548.0,2547.8,0.78475]
[1748056182260,1.96141,2548.5,2547.9,5.2023]
[1748056182564,18.44869,2548.0,2547.9,5.2023]
[1748056182959,15.582,2548.4,2547.9,10.2023]
[1748056183167,16.36658,2548.4,2548.3,3.2078]
[1748056186563,34.02858,2548.4,2548.3,3.2078]
[1748056187655,18.44658,2548.4,2548.3,3.2078]
[1748056188260,0.78452,2548.6,2548.3,3.2078]
[1748056188461,17.662,2548.6,2548.4,2.6972]
[1748056188665,18.44651,2548.6,2548.5,1.406]
[1748056191664,0.78451,2548.6,2548.5,1.406]
[1748056191865,18.44349,2548.7,2548.5,2.19052]
[1748056192067,0.78449,2548.7,2548.6,3.2078]
[1748056192268,18.44349,2548.7,2548.6,4.5207]
[1748056195364,18.44349,2548.7,2548.6,5.30521]
[1748056195365,18.44348,2548.7,2548.6,5.30521]
[1748056195565,0.00589183,2548.8,2548.7,0.78448]
[1748056195765,0.00589183,2548.8,2548.7,1.3642]
[1748056195766,18.44834183,2548.8,2548.7,1.3642]
[1748056197370,18.44834183,2548.8,2548.7,4.572]
[1748056200973,0.00589183,2548.8,2548.7,5.35648]
[1748056201278,16.22855669,2549.7,2549.2,0.78429]
[1748056201468,0.78423,2549.5,2549.4,3.2078]
[1748056201670,0.78423,2549.5,2549.4,4.6148]
[1748056201869,18.44123,2549.5,2549.4,4.6148]
[1748056202476,19.07742,2549.6,2549.4,4.6148]
[1748056202670,0.65844852,2549.7,2549.6,0.7842]
[1748056202873,0.78423,2549.5,2549.4,3.2078]
[1748056203174,16.36023,2549.5,2549.4,3.2078]
[1748056203674,35.28863,2549.5,2549.4,3.2078]
[1748056204172,2.05963,2549.5,2549.4,3.2078]